[Event "WTCC-50 2018"]
[Site "Radebeul"]
[Date "2018.07.14"]
[Round "8"]
[White "Polster, Wolfgang, Dr."]
[Black "Barron, Michael"]
[Result "0-1"]
[ECO "C24"]
[WhiteElo "2203"]
[BlackElo "2123"]
[Annotator "NA"]
[PlyCount "58"]
[EventDate "2018.07.07"]
[EventType "team-tourn"]
[EventCountry "GER"]
[SourceTitle "playchess.com"]
[Source "ChessBase"]
[SourceQuality "1"]
[TimeControl "40/5400+30:1800+30"]

1. e4 {[%emt 0:00:00]} e5 {[%emt 0:00:00]} 2. Bc4 {[%emt 0:00:00]} Nf6 {[%emt 0:00:00]} 3. d3 {[%emt 0:00:02]} c6 {[%emt 0:00:00]} 4. Nf3 {[%emt 0:00:52]} d5 {[%emt 0:00:00]} 5. Bb3 {[%emt 0:00:12]} Bd6 {[%emt 0:00:00]} 6. O-O {[%emt 0:00:53]} dxe4 {[%emt 0:07:12]} 7. dxe4 {[%emt 0:00:53]} Nxe4 {[%emt 0:01:20]} 8. Re1 {[%emt 0:00:35]} Bf5 {[%emt 0:00:03]} 9. Nbd2 {[%emt 0:04:31]} Nxd2 {[%emt 0:00:46]} 10. Nxe5 {[%emt 0:01:55]} O-O {[%emt 0:01:29]} 11. Bxd2 {[%emt 0:02:17]} Nd7 {[%emt 0:06:59]} 12. Ba5 {[%emt 0:04:35]} Qf6 {[%emt 0:01:04]} 13. Nc4 {[%emt 0:06:09]} Bc5 {[%emt 0:04:36]} 14. Bc3 {[%emt 0:01:06]} Qg6 {[%emt 0:17:20]} 15. Ne3 {[%emt 0:01:25]} Be6 {[%emt 0:01:19]} 16. Bxe6 {[%emt 0:05:56]} Qxe6 {[%emt 0:02:24]} 17. Qf3 {[%emt 0:06:39]} Ne5 {[%emt 0:05:28]} 18. Qg3 {[%emt 0:05:32]} f6 {[%emt 0:02:08]} 19. Kh1 {[%emt 0:01:07]} Bd6 {[%emt 0:03:44]} 20. Rad1 {[%emt 0:03:04]} Nd3 {[%emt 0:00:50]} 21. Qf3 {[%emt 0:24:57]} Nxe1 {[%emt 0:02:50]} 22. Rxe1 {[%emt 0:00:34]} Rfe8 {[%emt 0:00:13]} 23. b3 {[%emt 0:03:44]} Rad8 {[%emt 0:00:25]} 24. Qh5 {[%emt 0:01:32]} Qf7 {[%emt 0:04:11]} 25. Qg4 {[%emt 0:00:35]} Qg6 {[%emt 0:01:38]} 26. Qc4+ {[%emt 0:02:22]} Kh8 {[%emt 0:00:14]} 27. Rd1 {[%emt 0:01:25]} Qh5 {[%emt 0:01:28]} 28. h3 {[%emt 0:05:57]} Rxe3 {[%emt 0:00:37]} 29. Rxd6 {[%emt 0:00:29]} Rxh3+ {[%emt 0:00:03]} 0-1

[Event "WTCC-50 2018"]
[Site "Radebeul"]
[Date "2018.07.14"]
[Round "8"]
[White "Burchardt, Brigitte"]
[Black "Preuss, Heiko"]
[Result "1/2-1/2"]
[ECO "B26"]
[WhiteElo "2195"]
[BlackElo "2235"]
[Annotator "NA"]
[PlyCount "40"]
[EventDate "2018.07.07"]
[EventType "team-tourn"]
[EventCountry "GER"]
[SourceTitle "playchess.com"]
[Source "ChessBase"]
[SourceQuality "1"]
[TimeControl "40/5400+30:1800+30"]

1. e4 {[%emt 0:00:00]} c5 {[%emt 0:00:00]} 2. Nc3 {[%emt 0:00:00]} Nc6 {[%emt 0:00:00]} 3. g3 {[%emt 0:00:00]} g6 {[%emt 0:02:25]} 4. Bg2 {[%emt 0:00:00]} Bg7 {[%emt 0:00:51]} 5. d3 {[%emt 0:00:04]} d6 {[%emt 0:00:59]} 6. Be3 {[%emt 0:00:09]} Nf6 {[%emt 0:02:12]} 7. h3 {[%emt 0:00:11]} O-O {[%emt 0:01:29]} 8. Qd2 {[%emt 0:01:13]} e5 {[%emt 0:02:50]} 9. Nge2 {[%emt 0:13:36]} Rb8 {[%emt 0:03:52]} 10. O-O {[%emt 0:02:21]} Be6 11. f4 {[%emt 0:02:57]} Qd7 {[%emt 0:09:42]} 12. Kh2 {[%emt 0:00:40]} Nd4 {[%emt 0:02:06]} 13. Rab1 {[%emt 0:04:14]} Ne8 {[%emt 0:05:32]} 14. Nd5 {[%emt 0:03:56]} Bxd5 {[%emt 0:10:48]} 15. exd5 {[%emt 0:00:10]} Nxe2 {[%emt 0:01:17]} 16. Qxe2 {[%emt 0:00:11]} Nc7 {[%emt 0:03:51]} 17. c3 {[%emt 0:07:14]} a5 {[%emt 0:05:03]} 18. Qd2 {[%emt 0:05:38]} exf4 {[%emt 0:11:09]} 19. Bxf4 {[%emt 0:00:34]} a4 {[%emt 0:02:01]} 20. Rf2 {[%emt 0:09:19]} b5 {[%emt 0:02:48]} 1/2-1/2

[Event "WTCC-50 2018"]
[Site "Radebeul"]
[Date "2018.07.14"]
[Round "8"]
[White "Taggatz, Mario"]
[Black "Wallner, Joachim"]
[Result "1-0"]
[ECO "D10"]
[WhiteElo "2191"]
[BlackElo "2311"]
[Annotator "NA"]
[PlyCount "59"]
[EventDate "2018.07.07"]
[EventType "team-tourn"]
[EventCountry "GER"]
[SourceTitle "playchess.com"]
[Source "ChessBase"]
[SourceQuality "1"]
[TimeControl "40/5400+30:1800+30"]

1. d4 {[%emt 0:00:00]} d5 {[%emt 0:00:00]} 2. c4 {[%emt 0:00:04]} c6 {[%emt 0:00:00]} 3. cxd5 {[%emt 0:00:06]} cxd5 {[%emt 0:00:00]} 4. Bf4 {[%emt 0:00:08]} Nc6 {[%emt 0:00:00]} 5. e3 {[%emt 0:00:35]} Nf6 {[%emt 0:00:28]} 6. Nc3 {[%emt 0:00:28]} a6 {[%emt 0:00:03]} 7. Rc1 {[%emt 0:00:47]} e6 {[%emt 0:09:48]} 8. Bd3 {[%emt 0:01:02]} Be7 {[%emt 0:01:05]} 9. h3 {[%emt 0:03:53]} Bd7 {[%emt 0:01:48]} 10. Nf3 {[%emt 0:00:06]} O-O {[%emt 0:00:26]} 11. O-O {[%emt 0:00:05]} b5 {[%emt 0:00:39]} 12. Ne5 {[%emt 0:03:50]} Na5 {[%emt 0:16:35]} 13. Qe2 {[%emt 0:08:16]} Nc4 {[%emt 0:00:45]} 14. b3 {[%emt 0:02:29]} Na3 {[%emt 0:07:46]} 15. Nb1 {[%emt 0:12:54]} Nxb1 {[%emt 0:06:48]} 16. Bxb1 {[%emt 0:01:10]} Ba3 {[%emt 0:00:11]} 17. Nxd7 {[%emt 0:09:41]} Qxd7 {[%emt 0:08:10]} 18. Rc7 {[%emt 0:00:38]} Qd8 {[%emt 0:01:41]} 19. Qd3 {[%emt 0:10:01]} g6 {[%emt 0:03:16]} 20. Rc6 {[%emt 0:14:03]} Qe8 {[%emt 0:04:29]} 21. Qc3 {[%emt 0:06:28]} Qd7 {[%emt 0:16:36]} 22. Be5 {[%emt 0:04:21]} Ne4 {[%emt 0:00:07]} 23. Bxe4 {[%emt 0:00:17]} dxe4 {[%emt 0:00:03]} 24. Qc2 {[%emt 0:05:47]} Qd5 {[%emt 0:01:40]} 25. f3 {[%emt 0:01:48]} exf3 {[%emt 0:00:04]} 26. Rxf3 {[%emt 0:00:29]} Qd7 {[%emt 0:00:40]} 27. Rc7 {[%emt 0:04:36]} Rac8 {[%emt 0:00:34]} 28. Rxf7 {[%emt 0:00:42]} Qxf7 {[%emt 0:01:58]} 29. Rxc8 {[%emt 0:01:49]} Qb7 {[%emt 0:02:08]} 30. Rc7 1-0

[Event "WTCC-50 2018"]
[Site "Radebeul"]
[Date "2018.07.14"]
[Round "8"]
[White "Gempe, Thomas"]
[Black "Arkell, Keith C"]
[Result "0-1"]
[ECO "C16"]
[WhiteElo "2178"]
[BlackElo "2406"]
[Annotator "ChessBase"]
[PlyCount "80"]
[EventDate "2018.07.07"]
[EventType "team-tourn"]
[EventCountry "GER"]
[SourceTitle "playchess.com"]
[Source "ChessBase"]
[SourceQuality "1"]
[TimeControl "40/5400+30:1800+30"]

1. d4 {[%emt 0:00:00]} e6 {[%emt 0:00:00]} 2. e4 {[%emt 0:02:51]} d5 {[%emt 0:00:00]} 3. Nc3 {[%emt 0:00:09]} Bb4 {[%emt 0:00:11]} 4. e5 {[%emt 0:00:33]} b6 {[%emt 0:00:24]} 5. Bd2 {[%emt 0:05:45]} Ba6 {[%emt 0:02:50]} 6. Bxa6 {[%emt 0:04:13]} Nxa6 {[%emt 0:00:05]} 7. Qe2 {[%emt 0:00:10]} Qc8 {[%emt 0:01:29]} 8. Nh3 {[%emt 0:07:13]} c6 {[%emt 0:05:22]} 9. Nf4 {[%emt 0:04:33]} g6 {[%emt 0:06:22]} 10. a3 {[%emt 0:04:11]} Bf8 {[%emt 0:00:16]} 11. b4 {[%emt 0:01:35]} Nc7 {[%emt 0:00:33]} 12. Na4 {[%emt 0:03:24]} Qa6 {[%emt 0:01:16]} 13. Qxa6 {[%emt 0:00:25]} Nxa6 {[%emt 0:00:05]} 14. Nd3 {[%emt 0:00:23]} Ne7 {[%emt 0:01:09]} 15. Ke2 {[%emt 0:08:11]} Nf5 {[%emt 0:00:19]} 16. c3 {[%emt 0:00:05]} h5 {[%emt 0:01:35]} 17. Be3 {[%emt 0:17:07]} Be7 {[%emt 0:04:40]} 18. g3 {[%emt 0:02:16]} Nc7 {[%emt 0:02:51]} 19. Rhc1 {[%emt 0:03:20]} Kd7 {[%emt 0:00:51]} 20. h3 {[%emt 0:05:11]} Nb5 {[%emt 0:02:10]} 21. Nab2 {[%emt 0:04:18]} a5 {[%emt 0:01:02]} 22. Na4 {[%emt 0:03:12]} Kc7 {[%emt 0:06:55]} 23. Kd2 {[%emt 0:01:37]} Ra6 {[%emt 0:04:58]} 24. Nab2 {[%emt 0:00:34]} Rha8 {[%emt 0:03:26]} 25. a4 {[%emt 0:01:04]} axb4 {[%emt 0:01:24]} 26. Nxb4 {[%emt 0:01:53]} Bxb4 {[%emt 0:01:21]} 27. cxb4 {[%emt 0:00:05]} Nbxd4 {[%emt 0:00:35]} 28. Ra3 {[%emt 0:05:08]} Kd7 {[%emt 0:01:33]} 29. g4 {[%emt 0:06:19]} hxg4 {[%emt 0:02:15]} 30. hxg4 {[%emt 0:00:04]} Nf3+ {[%emt 0:05:16]} 31. Ke2 {[%emt 0:00:40]} Nxe3 {[%emt 0:05:02]} 32. Rxe3 {[%emt 0:02:47]} Nd4+ {[%emt 0:07:36]} 33. Kd2 {[%emt 0:04:17]} Rc8 {[%emt 0:03:25]} 34. Rec3 {[%emt 0:02:29]} c5 {[%emt 0:00:39]} 35. b5 {[%emt 0:00:42]} Raa8 {[%emt 0:00:29]} 36. Rh1 {[%emt 0:00:25]} Rh8 {[%emt 0:00:19]} 37. Rch3 {[%emt 0:00:15]} Rxh3 {[%emt 0:00:07]} 38. Rxh3 {[%emt 0:00:12]} g5 {[%emt 0:02:52]} 39. Kd3 {[%emt 0:01:08]} Ke7 {[%emt 0:01:41]} 40. Kd2 {[%emt 0:00:23]} c4 {[%emt 0:01:34]} 0-1

[Event "WTCC-50 2018"]
[Site "Radebeul"]
[Date "2018.07.14"]
[Round "8"]
[White "Sirotkina, Nina"]
[Black "Tolhuizen, Ludo"]
[Result "1-0"]
[ECO "A45"]
[WhiteElo "2175"]
[BlackElo "2118"]
[Annotator "NA"]
[PlyCount "33"]
[EventDate "2018.07.07"]
[EventType "team-tourn"]
[EventCountry "GER"]
[SourceTitle "playchess.com"]
[Source "ChessBase"]
[SourceQuality "1"]
[TimeControl "40/5400+30:1800+30"]

1. d4 {[%emt 0:00:00]} Nf6 {[%emt 0:00:00]} 2. Bf4 {[%emt 0:00:25]} e6 {[%emt 0:00:00]} 3. e3 {[%emt 0:00:40]} c5 {[%emt 0:00:03]} 4. Nd2 {[%emt 0:01:02]} Nc6 {[%emt 0:00:11]} 5. c3 {[%emt 0:00:23]} d5 {[%emt 0:00:22]} 6. Ngf3 {[%emt 0:00:57]} Be7 {[%emt 0:00:13]} 7. h3 {[%emt 0:01:58]} Bd6 {[%emt 0:00:07]} 8. dxc5 {[%emt 0:27:59]} Bxc5 {[%emt 0:00:27]} 9. Bd3 {[%emt 0:01:07]} Bd6 {[%emt 0:13:05]} 10. Bxd6 {[%emt 0:08:42]} Qxd6 {[%emt 0:00:14]} 11. e4 {[%emt 0:01:07]} O-O {[%emt 0:02:57]} 12. O-O {[%emt 0:03:16]} b6 {[%emt 0:17:39]} 13. Re1 {[%emt 0:03:50]} dxe4 {[%emt 0:01:48]} 14. Nxe4 {[%emt 0:02:38]} Qe7 {[%emt 0:00:29]} 15. Nxf6+ {[%emt 0:10:21]} Qxf6 {[%emt 0:00:33]} 16. Be4 {[%emt 0:02:14]} Bb7 {[%emt 0:00:33]} 17. Qd7 {[%emt 0:10:15]} 1-0

[Event "WTCC-50 2018"]
[Site "Radebeul"]
[Date "2018.07.14"]
[Round "8"]
[White "Olsson, Peter 1962"]
[Black "Wong, Meng Kong"]
[Result "1/2-1/2"]
[ECO "D00"]
[WhiteElo "2172"]
[BlackElo "2248"]
[Annotator "NA"]
[PlyCount "43"]
[EventDate "2018.07.07"]
[EventType "team-tourn"]
[EventCountry "GER"]
[SourceTitle "playchess.com"]
[Source "ChessBase"]
[SourceQuality "1"]
[TimeControl "40/5400+30:1800+30"]

1. d4 {[%emt 0:00:00]} d5 {[%emt 0:00:00]} 2. Bf4 {[%emt 0:00:33]} c6 {[%emt 0:00:06]} 3. c3 {[%emt 0:01:53]} Bf5 {[%emt 0:00:17]} 4. e3 {[%emt 0:00:39]} e6 {[%emt 0:00:11]} 5. Nd2 {[%emt 0:04:24]} Nf6 {[%emt 0:00:58]} 6. Ngf3 {[%emt 0:09:48]} h6 {[%emt 0:01:47]} 7. h4 {[%emt 0:04:53]} Bd6 {[%emt 0:01:15]} 8. Ne5 {[%emt 0:00:24]} Ne4 {[%emt 0:10:47]} 9. Nxe4 {[%emt 0:06:30]} Bxe4 {[%emt 0:00:16]} 10. f3 {[%emt 0:04:49]} Bh7 {[%emt 0:00:16]} 11. Bd3 {[%emt 0:01:28]} Bxd3 {[%emt 0:01:03]} 12. Qxd3 {[%emt 0:00:36]} Qe7 {[%emt 0:01:55]} 13. O-O-O {[%emt 0:02:26]} Nd7 {[%emt 0:00:58]} 14. g4 {[%emt 0:01:25]} Bxe5 {[%emt 0:02:43]} 15. Bxe5 {[%emt 0:02:56]} Nxe5 {[%emt 0:01:40]} 16. dxe5 {[%emt 0:00:01]} h5 {[%emt 0:01:18]} 17. g5 {[%emt 0:01:58]} g6 {[%emt 0:00:48]} 18. f4 {[%emt 0:01:15]} O-O-O {[%emt 0:00:26]} 19. Qd4 {[%emt 0:06:14]} Kb8 {[%emt 0:00:32]} 20. Kb1 {[%emt 0:00:34]} Rc8 {[%emt 0:00:41]} 21. Rh2 {[%emt 0:01:40]} Rhd8 {[%emt 0:02:21]} 22. Rhd2 {[%emt 0:00:52]} 1/2-1/2

[Event "WTCC-50 2018"]
[Site "Radebeul"]
[Date "2018.07.14"]
[Round "8"]
[White "Pruefer, Friedbert, Dr."]
[Black "Schlosser, Philipp"]
[Result "0-1"]
[ECO "A06"]
[WhiteElo "2172"]
[BlackElo "2501"]
[Annotator "RC"]
[PlyCount "44"]
[EventDate "2018.07.07"]
[EventType "team-tourn"]
[EventCountry "GER"]
[SourceTitle "playchess.com"]
[Source "ChessBase"]
[SourceQuality "1"]
[TimeControl "40/5400+30:1800+30"]

1. Nf3 {[%emt 0:00:00]} d5 {[%emt 0:02:18]} 2. e3 {[%emt 0:00:00]} Nf6 {[%emt 0:01:41]} 3. b3 {[%emt 0:00:01]} Bf5 {[%emt 0:02:21]} 4. Bb2 {[%emt 0:00:29]} e6 {[%emt 0:00:32]} 5. Be2 {[%emt 0:02:25]} h6 {[%emt 0:00:11]} 6. O-O {[%emt 0:00:18]} Bd6 {[%emt 0:00:45]} 7. c4 {[%emt 0:04:50]} O-O {[%emt 0:00:49]} 8. d4 {[%emt 0:00:45]} c6 {[%emt 0:00:35]} 9. Nc3 {[%emt 0:00:22]} Nbd7 {[%emt 0:00:14]} 10. h3 {[%emt 0:05:32]} Qe7 {[%emt 0:07:00]} 11. Re1 {[%emt 0:09:17]} Bg6 {[%emt 0:06:31]} 12. Qd2 {[%emt 0:15:32]} Rad8 {[%emt 0:03:00]} 13. Rad1 {[%emt 0:01:22]} Ne4 {[%emt 0:02:57]} 14. Qc1 {[%emt 0:03:57]} f5 {[%emt 0:00:24]} 15. Nxe4 {[%emt 0:01:28]} fxe4 {[%emt 0:00:04]} 16. Ne5 {[%emt 0:05:17]} Bf5 {[%emt 0:16:38]} 17. Nxd7 {[%emt 0:07:15]} Rxd7 {[%emt 0:00:03]} 18. Rf1 {[%emt 0:02:33]} Qg5 {[%emt 0:04:20]} 19. Bg4 {[%emt 0:07:53]} Bxg4 {[%emt 0:03:32]} 20. hxg4 {[%emt 0:01:01]} Qh4 {[%emt 0:02:41]} 21. g3 {[%emt 0:01:53]} Qxg4 {[%emt 0:00:03]} 22. Rd2 {[%emt 0:02:09]} Rdf7 {[%emt 0:02:12]} 0-1

[Event "WTCC-50 2018"]
[Site "Radebeul"]
[Date "2018.07.14"]
[Round "8"]
[White "Chan, Peng Kong"]
[Black "Sundell, Bo"]
[Result "1/2-1/2"]
[ECO "A15"]
[WhiteElo "2158"]
[BlackElo "2157"]
[Annotator "NA"]
[PlyCount "69"]
[EventDate "2018.07.07"]
[EventType "team-tourn"]
[EventCountry "GER"]
[SourceTitle "playchess.com"]
[Source "ChessBase"]
[SourceQuality "1"]
[TimeControl "40/5400+30:1800+30"]

1. c4 {[%emt 0:00:00]} Nf6 {[%emt 0:00:33]} 2. g3 {[%emt 0:00:23]} c6 {[%emt 0:01:26]} 3. Nf3 {[%emt 0:01:42]} d5 {[%emt 0:00:17]} 4. Bg2 {[%emt 0:04:40]} e6 {[%emt 0:02:36]} 5. b3 {[%emt 0:02:01]} Bd6 {[%emt 0:05:43]} 6. Bb2 {[%emt 0:00:44]} Nbd7 {[%emt 0:00:25]} 7. O-O {[%emt 0:01:02]} O-O {[%emt 0:00:09]} 8. d4 {[%emt 0:04:43]} Qe7 {[%emt 0:15:52]} 9. Nc3 {[%emt 0:04:53]} Rd8 {[%emt 0:08:23]} 10. Qc2 {[%emt 0:00:37]} b6 {[%emt 0:02:05]} 11. e4 {[%emt 0:07:18]} dxe4 {[%emt 0:01:02]} 12. Nxe4 {[%emt 0:00:14]} Nxe4 {[%emt 0:00:49]} 13. Qxe4 {[%emt 0:00:04]} Bb7 {[%emt 0:01:41]} 14. Rad1 {[%emt 0:08:18]} Nf6 {[%emt 0:00:54]} 15. Qc2 {[%emt 0:00:55]} a5 {[%emt 0:02:18]} 16. c5 {[%emt 0:12:18]} bxc5 {[%emt 0:18:37]} 17. dxc5 {[%emt 0:00:08]} Bxc5 {[%emt 0:00:17]} 18. Ng5 {[%emt 0:01:01]} Bb4 {[%emt 0:06:14]} 19. Bxf6 {[%emt 0:03:15]} Qxf6 {[%emt 0:00:09]} 20. Qxh7+ {[%emt 0:00:23]} Kf8 {[%emt 0:00:03]} 21. Qh5 {[%emt 0:01:58]} Ke7 {[%emt 0:02:34]} 22. h4 {[%emt 0:02:40]} g6 {[%emt 0:06:50]} 23. Qg4 {[%emt 0:00:28]} Qf5 {[%emt 0:00:26]} 24. Qc4 {[%emt 0:04:51]} Kf8 {[%emt 0:08:44]} 25. Bh3 {[%emt 0:02:28]} Qe5 {[%emt 0:06:13]} 26. Bxe6 {[%emt 0:05:05]} fxe6 {[%emt 0:00:08]} 27. Nxe6+ {[%emt 0:00:17]} Ke7 {[%emt 0:00:14]} 28. Nxd8 {[%emt 0:02:15]} Rxd8 {[%emt 0:00:04]} 29. Rxd8 {[%emt 0:00:08]} Kxd8 {[%emt 0:00:04]} 30. Rd1+ {[%emt 0:00:14]} Kc7 {[%emt 0:00:20]} 31. Qf7+ {[%emt 0:01:33]} Kb6 {[%emt 0:04:13]} 32. Qxg6 {[%emt 0:07:03]} Bc5 {[%emt 0:00:30]} 33. Qd3 {[%emt 0:02:46]} Ka7 {[%emt 0:00:48]} 34. Qf3 {[%emt 0:01:37]} Qe6 {[%emt 0:00:56]} 35. Kh2 {[%emt 0:05:28]} 1/2-1/2

[Event "WTCC-50 2018"]
[Site "Radebeul"]
[Date "2018.07.14"]
[Round "8"]
[White "Ernst, Michael"]
[Black "Scheckenbach, Franz"]
[Result "1/2-1/2"]
[ECO "A40"]
[WhiteElo "2156"]
[BlackElo "2106"]
[Annotator "NA"]
[PlyCount "51"]
[EventDate "2018.07.07"]
[EventType "team-tourn"]
[EventCountry "GER"]
[SourceTitle "playchess.com"]
[Source "ChessBase"]
[SourceQuality "1"]
[TimeControl "40/5400+30:1800+30"]

1. d4 {[%emt 0:00:00]} e6 {[%emt 0:00:00]} 2. Bf4 {[%emt 0:00:00]} d5 {[%emt 0:00:00]} 3. e3 {[%emt 0:00:00]} Nf6 {[%emt 0:00:11]} 4. Nd2 {[%emt 0:00:00]} Bd6 {[%emt 0:00:44]} 5. Bg3 {[%emt 0:00:00]} O-O {[%emt 0:00:43]} 6. Bd3 {[%emt 0:01:27]} c5 {[%emt 0:00:34]} 7. c3 {[%emt 0:00:02]} Nc6 {[%emt 0:00:10]} 8. Ngf3 {[%emt 0:00:12]} b6 {[%emt 0:00:15]} 9. e4 {[%emt 0:02:46]} Be7 {[%emt 0:00:21]} 10. dxc5 {[%emt 0:00:21]} bxc5 {[%emt 0:04:06]} 11. O-O {[%emt 0:00:03]} Qb6 {[%emt 0:11:36]} 12. Qc2 {[%emt 0:02:51]} Ba6 {[%emt 0:06:12]} 13. Bxa6 {[%emt 0:04:25]} Qxa6 {[%emt 0:00:07]} 14. exd5 {[%emt 0:01:38]} exd5 {[%emt 0:02:28]} 15. Rfe1 {[%emt 0:00:45]} Rfe8 {[%emt 0:03:40]} 16. a3 {[%emt 0:02:31]} Rad8 {[%emt 0:08:52]} 17. b4 {[%emt 0:03:27]} Bf8 {[%emt 0:06:38]} 18. Qb3 {[%emt 0:05:42]} Qd3 {[%emt 0:11:36]} 19. Rad1 {[%emt 0:06:15]} Rxe1+ {[%emt 0:01:22]} 20. Rxe1 {[%emt 0:12:18]} cxb4 {[%emt 0:13:22]} 21. cxb4 {[%emt 0:02:33]} Qb5 {[%emt 0:02:58]} 22. Be5 {[%emt 0:08:16]} a5 {[%emt 0:09:25]} 23. bxa5 {[%emt 0:08:24]} Qxa5 {[%emt 0:00:11]} 24. a4 {[%emt 0:03:51]} Nxe5 {[%emt 0:02:45]} 25. Rxe5 {[%emt 0:00:09]} Bb4 {[%emt 0:00:36]} 26. Nf1 {[%emt 0:12:01]} 1/2-1/2

[Event "WTCC-50 2018"]
[Site "Radebeul"]
[Date "2018.07.14"]
[Round "8"]
[White "Heinsohn, Guenther"]
[Black "Volke, Karsten"]
[Result "1/2-1/2"]
[ECO "A28"]
[WhiteElo "2150"]
[BlackElo "2474"]
[Annotator "ChessBase"]
[PlyCount "115"]
[EventDate "2018.07.07"]
[EventType "team-tourn"]
[EventCountry "GER"]
[SourceTitle "playchess.com"]
[Source "ChessBase"]
[SourceQuality "1"]
[TimeControl "40/5400+30:1800+30"]

1. c4 {[%emt 0:00:00]} e5 {[%emt 0:00:00]} 2. Nc3 {[%emt 0:00:17]} Nf6 {[%emt 0:00:00]} 3. Nf3 {[%emt 0:00:20]} Nc6 {[%emt 0:00:21]} 4. e3 {[%emt 0:01:14]} d5 {[%emt 0:02:23]} 5. cxd5 {[%emt 0:00:22]} Nxd5 {[%emt 0:00:08]} 6. Bb5 {[%emt 0:03:39]} Nxc3 {[%emt 0:00:32]} 7. bxc3 {[%emt 0:00:35]} Bd6 {[%emt 0:00:09]} 8. d4 {[%emt 0:01:30]} e4 {[%emt 0:04:51]} 9. Nd2 {[%emt 0:07:57]} Qg5 {[%emt 0:04:24]} 10. Bf1 {[%emt 0:00:47]} Qg6 {[%emt 0:05:24]} 11. f3 {[%emt 0:13:57]} exf3 {[%emt 0:01:01]} 12. Qxf3 {[%emt 0:00:40]} O-O {[%emt 0:02:02]} 13. Be2 {[%emt 0:02:14]} f5 {[%emt 0:11:06]} 14. Nc4 {[%emt 0:04:48]} Bd7 {[%emt 0:07:13]} 15. Nxd6 {[%emt 0:00:37]} cxd6 {[%emt 0:03:11]} 16. O-O {[%emt 0:01:54]} Rae8 {[%emt 0:04:11]} 17. Bd3 {[%emt 0:01:58]} Nd8 {[%emt 0:06:06]} 18. c4 {[%emt 0:06:29]} Bc6 {[%emt 0:02:08]} 19. d5 {[%emt 0:01:46]} Bd7 {[%emt 0:00:08]} 20. Bb2 {[%emt 0:01:14]} Nf7 {[%emt 0:06:00]} 21. Bxf5 {[%emt 0:14:15]} Bxf5 {[%emt 0:02:24]} 22. Qxf5 {[%emt 0:00:10]} Rxe3 {[%emt 0:07:16]} 23. Bd4 {[%emt 0:04:03]} Qxf5 {[%emt 0:11:54]} 24. Rxf5 {[%emt 0:00:10]} Re4 {[%emt 0:00:05]} 25. Bxa7 {[%emt 0:02:10]} Rxc4 {[%emt 0:01:59]} 26. Rb1 {[%emt 0:05:49]} Rc7 {[%emt 0:00:32]} 27. Bb6 {[%emt 0:02:36]} Re7 {[%emt 0:00:26]} 28. Bd4 {[%emt 0:02:57]} Ra8 {[%emt 0:01:09]} 29. Rb2 {[%emt 0:05:54]} Ra4 {[%emt 0:01:44]} 30. Bf2 {[%emt 0:01:07]} Rc4 {[%emt 0:01:46]} 31. h3 {[%emt 0:00:46]} h6 {[%emt 0:00:12]} 32. Rf3 {[%emt 0:02:55]} Rc1+ {[%emt 0:02:20]} 33. Kh2 {[%emt 0:00:09]} Rd1 {[%emt 0:00:29]} 34. Re3 {[%emt 0:04:21]} Ne5 {[%emt 0:02:26]} 35. Reb3 {[%emt 0:00:46]} Rxd5 {[%emt 0:01:42]} 36. Bh4 {[%emt 0:01:14]} Rc7 {[%emt 0:04:33]} 37. Bg3 {[%emt 0:01:14]} Nf7 {[%emt 0:03:26]} 38. Rxb7 {[%emt 0:00:48]} Rxb7 {[%emt 0:00:06]} 39. Rxb7 {[%emt 0:00:06]} Ra5 {[%emt 0:00:07]} 40. Rb2 {[%emt 0:01:03]} Kf8 {[%emt 0:00:08]} 41. Be1 {[%emt 0:31:52]} Ra3 {[%emt 0:31:53]} 42. Bb4 {[%emt 0:01:36]} Ra4 {[%emt 0:00:08]} 43. a3 {[%emt 0:00:36]} Ke7 {[%emt 0:01:03]} 44. Rc2 {[%emt 0:01:54]} Kd7 {[%emt 0:00:07]} 45. Rf2 {[%emt 0:00:00]} Ne5 {[%emt 0:00:00]} 46. Rf8 {[%emt 0:00:00]} Ra7 {[%emt 0:00:00]} 47. Kg3 {[%emt 0:00:00]} Ke6 {[%emt 0:00:00]} 48. Rd8 {[%emt 0:00:00]} Nc4 {[%emt 0:00:00]} 49. Kf3 {[%emt 0:00:00]} Kd5 {[%emt 0:00:00]} 50. g4 {[%emt 0:00:00]} Re7 {[%emt 0:00:00]} 51. h4 {[%emt 0:00:00]} Rf7+ {[%emt 0:00:00]} 52. Kg3 {[%emt 0:00:00]} Ra7 {[%emt 0:00:00]} 53. h5 {[%emt 0:00:00]} Ke6 {[%emt 0:00:00]} 54. Re8+ {[%emt 0:00:00]} Kd7 {[%emt 0:00:00]} 55. Rg8 {[%emt 0:00:00]} Ke6 {[%emt 0:00:00]} 56. Re8+ {[%emt 0:00:00]} Kd7 {[%emt 0:00:00]} 57. Rg8 {[%emt 0:00:00]} Ke6 {[%emt 0:00:00]} 58. Re8+ {[%emt 0:00:00]} 1/2-1/2

[Event "WTCC-50 2018"]
[Site "Radebeul"]
[Date "2018.07.14"]
[Round "8"]
[White "Van den Bersselaar, Jeroen"]
[Black "Kryukova, Irina"]
[Result "1/2-1/2"]
[ECO "A13"]
[WhiteElo "2142"]
[BlackElo "2249"]
[Annotator "NA"]
[PlyCount "48"]
[EventDate "2018.07.07"]
[EventType "team-tourn"]
[EventCountry "GER"]
[SourceTitle "playchess.com"]
[Source "ChessBase"]
[SourceQuality "1"]
[TimeControl "40/5400+30:1800+30"]

1. Nf3 {[%emt 0:00:00]} Nf6 {[%emt 0:00:00]} 2. c4 {[%emt 0:00:00]} e6 {[%emt 0:00:28]} 3. g3 {[%emt 0:00:11]} d5 {[%emt 0:01:29]} 4. Bg2 {[%emt 0:00:13]} dxc4 {[%emt 0:05:36]} 5. Qa4+ {[%emt 0:00:37]} c6 {[%emt 0:01:47]} 6. Qxc4 {[%emt 0:00:42]} b5 {[%emt 0:01:03]} 7. Qc2 {[%emt 0:00:37]} Bb7 {[%emt 0:00:20]} 8. a4 {[%emt 0:01:24]} a6 {[%emt 0:01:02]} 9. O-O {[%emt 0:02:58]} Be7 {[%emt 0:06:46]} 10. Nc3 {[%emt 0:01:25]} Nbd7 {[%emt 0:02:37]} 11. d3 {[%emt 0:01:46]} O-O {[%emt 0:08:29]} 12. h3 {[%emt 0:04:20]} Nd5 {[%emt 0:07:27]} 13. Nxd5 {[%emt 0:21:15]} cxd5 {[%emt 0:01:09]} 14. d4 {[%emt 0:03:30]} Rc8 {[%emt 0:18:23]} 15. Qd3 {[%emt 0:03:32]} b4 {[%emt 0:06:00]} 16. Bd2 {[%emt 0:03:36]} a5 {[%emt 0:06:09]} 17. Rfc1 {[%emt 0:05:58]} Qb6 {[%emt 0:01:02]} 18. Qb5 {[%emt 0:10:44]} Qxb5 {[%emt 0:06:54]} 19. axb5 {[%emt 0:00:03]} Rxc1+ {[%emt 0:00:35]} 20. Bxc1 {[%emt 0:00:52]} Rc8 {[%emt 0:00:42]} 21. Bf4 {[%emt 0:00:48]} Bd8 {[%emt 0:01:33]} 22. Ne1 {[%emt 0:04:02]} Bb6 {[%emt 0:01:33]} 23. e3 {[%emt 0:01:42]} f6 {[%emt 0:05:16]} 24. Bd6 {[%emt 0:03:44]} Kf7 {[%emt 0:00:19]} 1/2-1/2